[Event "Live Chess"]
[Site "Chess.com"]
[Date "2023.05.20"]
[Round "-"]
[White "flyingpuffins"]
[Black "JackRudd"]
[Result "0-1"]
[WhiteElo "1958"]
[BlackElo "2462"]
[TimeControl "300"]
[EndTime "12:41:10 PDT"]
[Termination "JackRudd won by resignation"]

1. e4 {[%clk 0:04:58.7]} 1... c5 {[%clk 0:04:58.5]} 2. Nf3 {[%clk 0:04:56.6]}
2... d6 {[%clk 0:04:57.2]} 3. d4 {[%clk 0:04:54.8]} 3... cxd4 {[%clk 0:04:56.5]}
4. Nxd4 {[%clk 0:04:54.7]} 4... Nf6 {[%clk 0:04:55.6]} 5. Nc3 {[%clk 0:04:54.3]}
5... a6 {[%clk 0:04:55]} 6. Bc4 {[%clk 0:04:51.4]} 6... e6 {[%clk 0:04:53.6]} 7.
Bb3 {[%clk 0:04:50.6]} 7... b5 {[%clk 0:04:52.8]} 8. Bg5 {[%clk 0:04:43.8]} 8...
Bb7 {[%clk 0:04:51.3]} 9. O-O {[%clk 0:04:31.9]} 9... Be7 {[%clk 0:04:48.1]} 10.
Bxe6 {[%clk 0:04:15.9]} 10... fxe6 {[%clk 0:04:44.5]} 11. Nxe6 {[%clk
0:04:15.8]} 11... Qd7 {[%clk 0:04:41.2]} 12. Nxg7+ {[%clk 0:04:14.6]} 12... Kf7
{[%clk 0:04:40.5]} 13. Nf5 {[%clk 0:04:13.1]} 13... Nc6 {[%clk 0:04:33.9]} 14.
Bxf6 {[%clk 0:03:50]} 14... Bxf6 {[%clk 0:04:30.2]} 15. Qh5+ {[%clk 0:03:47.3]}
15... Kf8 {[%clk 0:04:27.3]} 16. Nd5 {[%clk 0:03:40.3]} 16... Bxb2 {[%clk
0:04:24.6]} 17. Rab1 {[%clk 0:03:29.2]} 17... Be5 {[%clk 0:04:20.2]} 18. Nb6
{[%clk 0:03:22.5]} 18... Qe6 {[%clk 0:04:15.7]} 19. Nxa8 {[%clk 0:03:20.8]}
19... Bxa8 {[%clk 0:04:14.7]} 20. Qh6+ {[%clk 0:03:15.8]} 20... Qxh6 {[%clk
0:04:13]} 21. Nxh6 {[%clk 0:03:15.7]} 21... Nd4 {[%clk 0:04:11.6]} 22. c4 {[%clk
0:03:04.4]} 22... Bxe4 {[%clk 0:04:08.7]} 23. Rbe1 {[%clk 0:02:55.6]} 23... Bd3
{[%clk 0:04:07]} 24. Rxe5 {[%clk 0:02:48.3]} 24... dxe5 {[%clk 0:04:05.2]} 25.
Re1 {[%clk 0:02:47.7]} 25... Ne2+ {[%clk 0:04:04]} 26. Kh1 {[%clk 0:02:45.9]}
26... bxc4 {[%clk 0:04:02.7]} 27. Ng4 {[%clk 0:02:43.5]} 27... Kg7 {[%clk
0:04:00.1]} 28. Nxe5 {[%clk 0:02:42.2]} 28... Re8 {[%clk 0:03:58.9]} 29. Nf3
{[%clk 0:02:40.6]} 29... c3 {[%clk 0:03:56.3]} 0-1

[Event "Live Chess"]
[Site "Chess.com"]
[Date "2023.05.20"]
[Round "-"]
[White "Enhard"]
[Black "McSlash1"]
[Result "0-1"]
[WhiteElo "1453"]
[BlackElo "2056"]
[TimeControl "300"]
[EndTime "12:41:13 PDT"]
[Termination "McSlash1 won by resignation"]

1. d4 {[%clk 0:04:58.4]} 1... Nf6 {[%clk 0:04:58.8]} 2. Bf4 {[%clk 0:04:57.2]}
2... g6 {[%clk 0:04:58.4]} 3. e3 {[%clk 0:04:56.3]} 3... Bg7 {[%clk 0:04:57.9]}
4. Nf3 {[%clk 0:04:55]} 4... O-O {[%clk 0:04:57.5]} 5. h3 {[%clk 0:04:54.1]}
5... d5 {[%clk 0:04:56.2]} 6. c3 {[%clk 0:04:53.2]} 6... c5 {[%clk 0:04:55.7]}
7. Be2 {[%clk 0:04:52.1]} 7... Ne4 {[%clk 0:04:54.3]} 8. Nbd2 {[%clk 0:04:50.7]}
8... Nc6 {[%clk 0:04:53.8]} 9. O-O {[%clk 0:04:49.2]} 9... Nxd2 {[%clk
0:04:52.5]} 10. Nxd2 {[%clk 0:04:47]} 10... e5 {[%clk 0:04:51.4]} 11. dxe5
{[%clk 0:04:45.1]} 11... Bxe5 {[%clk 0:04:50.6]} 12. Bxe5 {[%clk 0:04:44.2]}
12... Nxe5 {[%clk 0:04:50.5]} 13. Nf3 {[%clk 0:04:43.7]} 13... Nc6 {[%clk
0:04:47.5]} 14. Nd2 {[%clk 0:04:41.1]} 14... Bf5 {[%clk 0:04:45.8]} 15. Bg4
{[%clk 0:04:40.4]} 15... Qd7 {[%clk 0:04:43.9]} 16. Re1 {[%clk 0:04:35.4]} 16...
h5 {[%clk 0:04:37.3]} 17. Bxf5 {[%clk 0:04:33.9]} 17... Qxf5 {[%clk 0:04:37.2]}
18. Nf3 {[%clk 0:04:31.1]} 18... Rad8 {[%clk 0:04:34.1]} 19. Qb1 {[%clk
0:04:27]} 19... Qf6 {[%clk 0:04:27.4]} 20. Qc1 {[%clk 0:04:22.7]} 20... Rfe8
{[%clk 0:04:24.3]} 21. Qc2 {[%clk 0:04:17.8]} 21... Ne5 {[%clk 0:04:20.5]} 22.
Nxe5 {[%clk 0:04:14.6]} 22... Qxe5 {[%clk 0:04:20.4]} 23. Rad1 {[%clk
0:04:12.9]} 23... Kg7 {[%clk 0:04:16.4]} 24. Qa4 {[%clk 0:03:59.3]} 24... a6
{[%clk 0:04:14]} 25. Qb3 {[%clk 0:03:50]} 25... Re7 {[%clk 0:04:10.7]} 26. a4
{[%clk 0:03:43.7]} 26... Qe6 {[%clk 0:03:58.2]} 27. Qc2 {[%clk 0:03:35.8]} 27...
Qc6 {[%clk 0:03:53.9]} 28. Qb3 {[%clk 0:03:29.4]} 28... f5 {[%clk 0:03:47.7]}
29. Rd2 {[%clk 0:03:24]} 29... f4 {[%clk 0:03:35]} 30. Red1 {[%clk 0:03:15]}
30... c4 {[%clk 0:03:32.1]} 31. Qc2 {[%clk 0:03:10.6]} 31... fxe3 {[%clk
0:03:30.7]} 32. fxe3 {[%clk 0:03:09]} 32... Rxe3 {[%clk 0:03:27.9]} 33. Kh1
{[%clk 0:03:02.6]} 33... Rde8 {[%clk 0:03:25.5]} 34. Rxd5 {[%clk 0:02:44.2]}
34... Re1+ {[%clk 0:03:23.3]} 35. Kh2 {[%clk 0:02:34.2]} 35... Qc7+ {[%clk
0:03:20.4]} 36. Rd6 {[%clk 0:02:10.5]} 36... Rxd1 {[%clk 0:03:16.9]} 37. Qxd1
{[%clk 0:02:06.3]} 37... Re6 {[%clk 0:03:16.2]} 38. Qd4+ {[%clk 0:02:03.3]}
38... Kh7 {[%clk 0:03:15.5]} 39. g3 {[%clk 0:01:52.5]} 39... Qxd6 {[%clk
0:03:13.1]} 0-1

[Event "Live Chess"]
[Site "Chess.com"]
[Date "2023.05.20"]
[Round "-"]
[White "chessfiction"]
[Black "Stanbad1"]
[Result "1-0"]
[WhiteElo "2418"]
[BlackElo "2417"]
[TimeControl "300"]
[EndTime "12:41:19 PDT"]
[Termination "chessfiction won by resignation"]

1. e4 {[%clk 0:04:59.4]} 1... e6 {[%clk 0:04:54.3]} 2. d4 {[%clk 0:04:56.9]}
2... d5 {[%clk 0:04:52.2]} 3. Nc3 {[%clk 0:04:50.9]} 3... Nf6 {[%clk 0:04:39.1]}
4. e5 {[%clk 0:04:50]} 4... Nfd7 {[%clk 0:04:36.6]} 5. Nce2 {[%clk 0:04:49.9]}
5... c5 {[%clk 0:04:34.9]} 6. c3 {[%clk 0:04:49.8]} 6... Nc6 {[%clk 0:04:34.2]}
7. f4 {[%clk 0:04:49.2]} 7... a6 {[%clk 0:04:32.7]} 8. Nf3 {[%clk 0:04:48.8]}
8... b5 {[%clk 0:04:31.5]} 9. h4 {[%clk 0:04:48.2]} 9... c4 {[%clk 0:04:30.3]}
10. h5 {[%clk 0:04:46.4]} 10... h6 {[%clk 0:04:29.5]} 11. g4 {[%clk 0:04:44.9]}
11... a5 {[%clk 0:04:27.8]} 12. Bh3 {[%clk 0:04:44.2]} 12... Nb6 {[%clk
0:04:26.8]} 13. O-O {[%clk 0:04:42.9]} 13... b4 {[%clk 0:04:25.7]} 14. Ng3
{[%clk 0:04:41.6]} 14... a4 {[%clk 0:04:23.8]} 15. f5 {[%clk 0:04:40.2]} 15...
b3 {[%clk 0:04:22.1]} 16. Qe2 {[%clk 0:04:35.8]} 16... a3 {[%clk 0:04:13.5]} 17.
axb3 {[%clk 0:04:32.5]} 17... cxb3 {[%clk 0:04:11.9]} 18. bxa3 {[%clk
0:04:31.2]} 18... Nc4 {[%clk 0:04:10.4]} 19. g5 {[%clk 0:04:27.9]} 19... hxg5
{[%clk 0:04:06.3]} 20. Nxg5 {[%clk 0:04:21.9]} 20... Qb6 {[%clk 0:03:47]} 21.
fxe6 {[%clk 0:04:18.5]} 21... fxe6 {[%clk 0:03:44.9]} 22. Bxe6 {[%clk
0:04:15.8]} 22... b2 {[%clk 0:03:41.7]} 23. Bf7+ {[%clk 0:04:04.8]} 23... Kd8
{[%clk 0:03:38.9]} 24. Bxb2 {[%clk 0:03:59.7]} 24... Nxb2 {[%clk 0:03:37.6]} 25.
Bxd5 {[%clk 0:03:57.7]} 25... Bxa3 {[%clk 0:03:33.8]} 26. Nf7+ {[%clk
0:03:54.5]} 26... Kc7 {[%clk 0:03:32.5]} 27. Nxh8 {[%clk 0:03:49]} 27... Ba6
{[%clk 0:03:31.1]} 28. Rf7+ {[%clk 0:03:47.3]} 28... Kc8 {[%clk 0:03:27.7]} 29.
Qg4+ {[%clk 0:03:45.6]} 29... Kb8 {[%clk 0:03:26.2]} 30. Rxa3 {[%clk 0:03:37.6]}
30... Nxd4 {[%clk 0:03:21.6]} 31. Qxd4 {[%clk 0:03:34.5]} 1-0

[Event "Live Chess"]
[Site "Chess.com"]
[Date "2023.05.20"]
[Round "-"]
[White "gmnorfolk"]
[Black "EdenHazard8"]
[Result "0-1"]
[WhiteElo "2039"]
[BlackElo "2096"]
[TimeControl "300"]
[EndTime "12:41:21 PDT"]
[Termination "EdenHazard8 won by resignation"]

1. d4 {[%clk 0:04:58.7]} 1... d5 {[%clk 0:04:59.1]} 2. Nf3 {[%clk 0:04:56.7]}
2... Nf6 {[%clk 0:04:55.1]} 3. c4 {[%clk 0:04:55.2]} 3... e6 {[%clk 0:04:53.7]}
4. g3 {[%clk 0:04:54.2]} 4... dxc4 {[%clk 0:04:51.7]} 5. Bg2 {[%clk 0:04:53.5]}
5... Bb4+ {[%clk 0:04:50.7]} 6. Bd2 {[%clk 0:04:51.3]} 6... a5 {[%clk
0:04:49.9]} 7. O-O {[%clk 0:04:49.5]} 7... O-O {[%clk 0:04:47.2]} 8. Qc2 {[%clk
0:04:48.4]} 8... b5 {[%clk 0:04:45.3]} 9. a4 {[%clk 0:04:46.5]} 9... Bxd2 {[%clk
0:04:43.5]} 10. Nbxd2 {[%clk 0:04:45]} 10... c6 {[%clk 0:04:42.1]} 11. Ne5
{[%clk 0:04:28.5]} 11... Nd5 {[%clk 0:04:38.5]} 12. b3 {[%clk 0:04:18.5]} 12...
c3 {[%clk 0:04:08.6]} 13. Ne4 {[%clk 0:04:03]} 13... b4 {[%clk 0:04:03.1]} 14.
Nc5 {[%clk 0:04:01.6]} 14... Na6 {[%clk 0:03:49]} 15. Nxa6 {[%clk 0:03:40.5]}
15... Bxa6 {[%clk 0:03:48.9]} 16. Nxc6 {[%clk 0:03:37.6]} 16... Qc7 {[%clk
0:03:46.1]} 17. Ne5 {[%clk 0:03:33.5]} 17... Rfd8 {[%clk 0:03:36.3]} 18. Rfd1
{[%clk 0:03:26]} 18... Rac8 {[%clk 0:03:22.1]} 19. e4 {[%clk 0:02:58.4]} 19...
Nf6 {[%clk 0:03:08.3]} 20. f3 {[%clk 0:02:51.2]} 20... Qb6 {[%clk 0:03:06]} 21.
Qf2 {[%clk 0:02:46.4]} 21... Nd7 {[%clk 0:02:57.8]} 22. Nxd7 {[%clk 0:02:43.4]}
22... Rxd7 {[%clk 0:02:55]} 23. d5 {[%clk 0:02:38.3]} 23... Qxf2+ {[%clk
0:02:53.4]} 24. Kxf2 {[%clk 0:02:38.2]} 24... exd5 {[%clk 0:02:52.6]} 25. exd5
{[%clk 0:02:36.9]} 25... Rcd8 {[%clk 0:02:50.7]} 26. f4 {[%clk 0:02:35.2]} 26...
g6 {[%clk 0:02:38.7]} 27. Ke3 {[%clk 0:02:22]} 27... Bb7 {[%clk 0:02:34.7]} 28.
Bf3 {[%clk 0:02:03.8]} 28... Bxd5 {[%clk 0:02:32.6]} 29. Bxd5 {[%clk 0:01:54.7]}
29... Rxd5 {[%clk 0:02:32.5]} 30. Rd4 {[%clk 0:01:50.8]} 30... Rxd4 {[%clk
0:02:30.7]} 0-1

[Event "Live Chess"]
[Site "Chess.com"]
[Date "2023.05.20"]
[Round "-"]
[White "NatashaRegan"]
[Black "DenDenTie"]
[Result "1-0"]
[WhiteElo "1813"]
[BlackElo "689"]
[TimeControl "300"]
[EndTime "12:41:27 PDT"]
[Termination "NatashaRegan won by resignation"]

1. e4 {[%clk 0:04:54.3]} 1... e5 {[%clk 0:04:55.6]} 2. Nf3 {[%clk 0:04:51.1]}
2... Nc6 {[%clk 0:04:50.3]} 3. Bb5 {[%clk 0:04:49.1]} 3... Nf6 {[%clk
0:04:46.6]} 4. d3 {[%clk 0:04:46.6]} 4... d6 {[%clk 0:04:42.7]} 5. Nc3 {[%clk
0:04:43.8]} 5... Bg4 {[%clk 0:04:38]} 6. h3 {[%clk 0:04:41.5]} 6... Bxf3 {[%clk
0:04:34.6]} 7. Qxf3 {[%clk 0:04:40]} 7... g6 {[%clk 0:04:22.7]} 8. Bg5 {[%clk
0:04:37]} 8... Be7 {[%clk 0:04:18.6]} 9. O-O {[%clk 0:04:32.1]} 9... a6 {[%clk
0:04:13.4]} 10. Ba4 {[%clk 0:04:28.6]} 10... O-O {[%clk 0:04:06.1]} 11. Bxf6
{[%clk 0:04:21.3]} 11... Bxf6 {[%clk 0:04:02.5]} 12. Nd5 {[%clk 0:04:20.3]}
12... Be7 {[%clk 0:03:56.6]} 13. c3 {[%clk 0:04:12.5]} 13... b5 {[%clk
0:03:36.9]} 14. Bc2 {[%clk 0:04:04.4]} 14... Nb8 {[%clk 0:03:12.2]} 15. d4
{[%clk 0:03:58]} 15... c6 {[%clk 0:03:07.5]} 16. Ne3 {[%clk 0:03:54.2]} 16...
Nd7 {[%clk 0:03:03.9]} 17. Rad1 {[%clk 0:03:51]} 17... Nb6 {[%clk 0:02:49.4]}
18. dxe5 {[%clk 0:03:46.9]} 18... Qc7 {[%clk 0:02:39.7]} 19. exd6 {[%clk
0:03:42.2]} 19... Bxd6 {[%clk 0:02:36.8]} 20. Ng4 {[%clk 0:03:32.7]} 20... Qd8
{[%clk 0:02:06.8]} 21. e5 {[%clk 0:03:27.9]} 21... Qe7 {[%clk 0:02:00.2]} 22.
exd6 {[%clk 0:03:24.2]} 22... Qg5 {[%clk 0:01:52.3]} 23. Nf6+ {[%clk 0:03:11.4]}
23... Kh8 {[%clk 0:01:39.4]} 24. Ne4 {[%clk 0:03:03.6]} 24... Qd8 {[%clk
0:01:29.8]} 25. Qf6+ {[%clk 0:02:57.1]} 25... Qxf6 {[%clk 0:01:25.8]} 26. Nxf6
{[%clk 0:02:56.2]} 26... Rad8 {[%clk 0:01:23.1]} 27. Rfe1 {[%clk 0:02:48.4]}
27... Nd7 {[%clk 0:01:14]} 28. Nxd7 {[%clk 0:02:43.7]} 28... Rxd7 {[%clk
0:01:11.9]} 29. Re7 {[%clk 0:02:28.9]} 29... Rfd8 {[%clk 0:00:58.7]} 30. Rxd7
{[%clk 0:02:22.9]} 30... Rxd7 {[%clk 0:00:56.9]} 31. Be4 {[%clk 0:02:21.9]}
31... c5 {[%clk 0:00:46.6]} 32. Bc6 {[%clk 0:02:18.6]} 32... Rd8 {[%clk
0:00:43.5]} 33. d7 {[%clk 0:02:15.5]} 33... Kg8 {[%clk 0:00:37.4]} 34. Re1
{[%clk 0:02:13.8]} 34... Kf8 {[%clk 0:00:31.8]} 35. Re8+ {[%clk 0:02:12.5]}
35... Rxe8 {[%clk 0:00:30]} 36. dxe8=Q+ {[%clk 0:02:10.8]} 1-0

[Event "Live Chess"]
[Site "Chess.com"]
[Date "2023.05.20"]
[Round "-"]
[White "Chesscoach_Golichenko"]
[Black "GEMdzq"]
[Result "0-1"]
[WhiteElo "2634"]
[BlackElo "2298"]
[TimeControl "300"]
[EndTime "12:41:32 PDT"]
[Termination "GEMdzq won by resignation"]

1. d4 {[%clk 0:04:56]} 1... Nf6 {[%clk 0:04:58.5]} 2. c4 {[%clk 0:04:50.3]} 2...
e6 {[%clk 0:04:57]} 3. Nc3 {[%clk 0:04:48.5]} 3... c5 {[%clk 0:04:56.1]} 4. d5
{[%clk 0:04:47.3]} 4... exd5 {[%clk 0:04:55.4]} 5. cxd5 {[%clk 0:04:47.2]} 5...
d6 {[%clk 0:04:54.8]} 6. Nf3 {[%clk 0:04:45]} 6... g6 {[%clk 0:04:54.2]} 7. g3
{[%clk 0:04:42.8]} 7... Bg7 {[%clk 0:04:53.1]} 8. Bg2 {[%clk 0:04:42.3]} 8...
O-O {[%clk 0:04:51.1]} 9. O-O {[%clk 0:04:42]} 9... Re8 {[%clk 0:04:47.8]} 10.
Nd2 {[%clk 0:04:39.6]} 10... Nbd7 {[%clk 0:04:45.2]} 11. h3 {[%clk 0:04:37.6]}
11... Rb8 {[%clk 0:04:40]} 12. a4 {[%clk 0:04:25.3]} 12... a6 {[%clk 0:04:37.8]}
13. Nc4 {[%clk 0:04:20.5]} 13... Nb6 {[%clk 0:04:11.8]} 14. Na3 {[%clk
0:04:17.2]} 14... Nbd7 {[%clk 0:04:06.1]} 15. e4 {[%clk 0:04:09.1]} 15... Qa5
{[%clk 0:03:53.2]} 16. Nc4 {[%clk 0:04:04.3]} 16... Qc7 {[%clk 0:03:47]} 17. a5
{[%clk 0:03:50.8]} 17... b5 {[%clk 0:03:44.1]} 18. axb6 {[%clk 0:03:47.3]} 18...
Nxb6 {[%clk 0:03:42.5]} 19. Na5 {[%clk 0:03:45.2]} 19... Nbd7 {[%clk 0:03:06]}
20. f4 {[%clk 0:03:23.2]} 20... Bb7 {[%clk 0:02:57.5]} 21. Re1 {[%clk
0:03:15.6]} 21... Ba8 {[%clk 0:02:50.7]} 22. Nc4 {[%clk 0:03:13.4]} 22... Nh5
{[%clk 0:02:45.2]} 23. g4 {[%clk 0:03:09.8]} 23... Rb4 {[%clk 0:02:39.1]} 24.
Qd3 {[%clk 0:02:55.2]} 24... Nhf6 {[%clk 0:02:26.6]} 25. Rxa6 {[%clk 0:02:44.1]}
25... Nb6 {[%clk 0:02:19.5]} 26. Nxb6 {[%clk 0:02:30.5]} 26... Rxb6 {[%clk
0:02:19.4]} 27. e5 {[%clk 0:02:24]} 27... c4 {[%clk 0:02:12.1]} 28. Qf1 {[%clk
0:02:02.6]} 28... Rxa6 {[%clk 0:02:08.3]} 29. exf6 {[%clk 0:02:01.7]} 29... Rxe1
{[%clk 0:01:58.5]} 30. Qxe1 {[%clk 0:02:01.6]} 30... Bxf6 {[%clk 0:01:57.8]} 31.
Qe8+ {[%clk 0:01:58.7]} 31... Kg7 {[%clk 0:01:56.9]} 32. Ne4 {[%clk 0:01:58.2]}
32... Bd4+ {[%clk 0:01:55.5]} 33. Kh2 {[%clk 0:01:56.8]} 33... Bxd5 {[%clk
0:01:47.1]} 34. Nf6 {[%clk 0:01:16.4]} 34... Bxf6 {[%clk 0:01:31.1]} 35. Bxd5
{[%clk 0:01:12.9]} 35... Ra5 {[%clk 0:01:24.6]} 36. Bf3 {[%clk 0:00:59.4]} 36...
Ra1 {[%clk 0:01:17.8]} 37. g5 {[%clk 0:00:53.4]} 37... Bxg5 {[%clk 0:00:47.9]}
38. Be3 {[%clk 0:00:36.2]} 38... Bf6 {[%clk 0:00:45.9]} 39. f5 {[%clk
0:00:35.7]} 39... d5+ {[%clk 0:00:44.7]} 40. Kg2 {[%clk 0:00:33.9]} 40... d4
{[%clk 0:00:43.9]} 41. Bd2 {[%clk 0:00:21.6]} 41... c3 {[%clk 0:00:43.2]} 0-1

[Event "Live Chess"]
[Site "Chess.com"]
[Date "2023.05.20"]
[Round "-"]
[White "Olisingapore"]
[Black "JoshMcK"]
[Result "1-0"]
[WhiteElo "1901"]
[BlackElo "1566"]
[TimeControl "300"]
[EndTime "12:41:36 PDT"]
[Termination "Olisingapore won by checkmate"]

1. d4 {[%clk 0:04:58.5]} 1... Nf6 {[%clk 0:04:57.7]} 2. c4 {[%clk 0:04:57.9]}
2... g6 {[%clk 0:04:56.9]} 3. g3 {[%clk 0:04:56]} 3... Bg7 {[%clk 0:04:56.1]} 4.
Bg2 {[%clk 0:04:55.7]} 4... d6 {[%clk 0:04:54.9]} 5. Nc3 {[%clk 0:04:55.2]} 5...
O-O {[%clk 0:04:54.3]} 6. Nf3 {[%clk 0:04:54.9]} 6... Nbd7 {[%clk 0:04:53.4]} 7.
O-O {[%clk 0:04:54.8]} 7... e5 {[%clk 0:04:52.4]} 8. e4 {[%clk 0:04:52.7]} 8...
exd4 {[%clk 0:04:51.4]} 9. Nxd4 {[%clk 0:04:52.6]} 9... Nb6 {[%clk 0:04:46.5]}
10. b3 {[%clk 0:04:45.7]} 10... c5 {[%clk 0:04:42]} 11. Nf3 {[%clk 0:04:36]}
11... Nxe4 {[%clk 0:04:39.5]} 12. Nxe4 {[%clk 0:04:18.9]} 12... Bxa1 {[%clk
0:04:38.3]} 13. Bg5 {[%clk 0:04:14.6]} 13... f6 {[%clk 0:04:33.9]} 14. Bh6
{[%clk 0:04:12.7]} 14... Re8 {[%clk 0:04:32.2]} 15. Nxd6 {[%clk 0:04:09.3]}
15... Be5 {[%clk 0:04:22.8]} 16. Nxe8 {[%clk 0:04:04.5]} 16... Qxe8 {[%clk
0:04:22.7]} 17. Nxe5 {[%clk 0:03:56.9]} 17... Qxe5 {[%clk 0:04:22.6]} 18. Re1
{[%clk 0:03:52.4]} 18... Qc7 {[%clk 0:04:20.7]} 19. Bd5+ {[%clk 0:03:50.9]}
19... Nxd5 {[%clk 0:04:19]} 20. Qxd5+ {[%clk 0:03:50.5]} 20... Kh8 {[%clk
0:04:17.5]} 21. Re8# {[%clk 0:03:48.3]} 1-0

[Event "Live Chess"]
[Site "Chess.com"]
[Date "2023.05.20"]
[Round "-"]
[White "john_chandler"]
[Black "Pablo_dmp"]
[Result "0-1"]
[WhiteElo "804"]
[BlackElo "1864"]
[TimeControl "300"]
[EndTime "12:41:42 PDT"]
[Termination "Pablo_dmp won on time"]

1. c4 {[%clk 0:04:57.9]} 1... Nf6 {[%clk 0:04:58.9]} 2. Nc3 {[%clk 0:04:57]}
2... e6 {[%clk 0:04:58]} 3. e4 {[%clk 0:04:54.3]} 3... d5 {[%clk 0:04:56]} 4. e5
{[%clk 0:04:50.6]} 4... Nfd7 {[%clk 0:04:52.6]} 5. d3 {[%clk 0:04:47.4]} 5...
Nxe5 {[%clk 0:04:51]} 6. Bf4 {[%clk 0:04:35.7]} 6... Ng6 {[%clk 0:04:10.8]} 7.
Bg3 {[%clk 0:04:07.1]} 7... h5 {[%clk 0:03:57.4]} 8. h4 {[%clk 0:03:45.7]} 8...
Bd6 {[%clk 0:03:51.6]} 9. f4 {[%clk 0:03:25.2]} 9... Bxf4 {[%clk 0:03:48]} 10.
Bh2 {[%clk 0:03:04.4]} 10... Bxh2 {[%clk 0:03:14.7]} 11. Rxh2 {[%clk 0:02:44.8]}
11... Qd6 {[%clk 0:03:14.6]} 12. Qa4+ {[%clk 0:02:11.1]} 12... Bd7 {[%clk
0:03:07.8]} 13. Qa3 {[%clk 0:01:52.8]} 13... Qxh2 {[%clk 0:03:06.2]} 14. Nf3
{[%clk 0:01:35.5]} 14... Qg3+ {[%clk 0:02:33]} 15. Kd2 {[%clk 0:01:23.2]} 15...
dxc4 {[%clk 0:01:32.7]} 16. Qc5 {[%clk 0:00:35.9]} 16... cxd3 {[%clk 0:01:01.5]}
17. Ne4 {[%clk 0:00:25.8]} 17... Qf4+ {[%clk 0:00:44.2]} 18. Kxd3 {[%clk
0:00:18.5]} 18... Nc6 {[%clk 0:00:40]} 19. Be2 {[%clk 0:00:10.2]} 19... O-O-O
{[%clk 0:00:34.6]} 20. b4 {[%clk 0:00:05]} 20... Be8+ {[%clk 0:00:32.2]} 0-1

[Event "Live Chess"]
[Site "Chess.com"]
[Date "2023.05.20"]
[Round "-"]
[White "Greenbecker"]
[Black "FlyingChessKestrel13"]
[Result "0-1"]
[WhiteElo "1631"]
[BlackElo "2126"]
[TimeControl "300"]
[EndTime "12:41:47 PDT"]
[Termination "FlyingChessKestrel13 won on time"]

1. e4 {[%clk 0:04:57.8]} 1... Nc6 {[%clk 0:04:56.4]} 2. d4 {[%clk 0:04:55.6]}
2... e5 {[%clk 0:04:55.4]} 3. d5 {[%clk 0:04:52.6]} 3... Nce7 {[%clk 0:04:54.2]}
4. Nf3 {[%clk 0:04:51.6]} 4... Ng6 {[%clk 0:04:52.9]} 5. Nc3 {[%clk 0:04:48.4]}
5... d6 {[%clk 0:04:51.9]} 6. Bb5+ {[%clk 0:04:46.7]} 6... Bd7 {[%clk
0:04:50.7]} 7. Bxd7+ {[%clk 0:04:45.8]} 7... Qxd7 {[%clk 0:04:49.9]} 8. O-O
{[%clk 0:04:44.7]} 8... N8e7 {[%clk 0:04:48.3]} 9. Be3 {[%clk 0:04:40.5]} 9...
f5 {[%clk 0:04:47.3]} 10. exf5 {[%clk 0:04:34.9]} 10... Nxf5 {[%clk 0:04:46.3]}
11. Ng5 {[%clk 0:04:30.6]} 11... Be7 {[%clk 0:04:39.5]} 12. Ne6 {[%clk
0:04:28.8]} 12... Nf8 {[%clk 0:04:37.9]} 13. Nxf8 {[%clk 0:04:12.4]} 13... Rxf8
{[%clk 0:04:34]} 14. Qh5+ {[%clk 0:04:08.1]} 14... Rf7 {[%clk 0:04:27.2]} 15.
Qxh7 {[%clk 0:04:06.2]} 15... O-O-O {[%clk 0:04:26.7]} 16. Qh3 {[%clk
0:03:58.7]} 16... Rdf8 {[%clk 0:04:21.8]} 17. Bxa7 {[%clk 0:03:42.8]} 17... g5
{[%clk 0:04:15.5]} 18. Qd3 {[%clk 0:03:36.9]} 18... Rh8 {[%clk 0:04:07]} 19. Be3
{[%clk 0:03:29.6]} 19... Rfh7 {[%clk 0:04:05.5]} 20. Rfe1 {[%clk 0:03:17.8]}
20... Rxh2 {[%clk 0:04:02]} 21. Kf1 {[%clk 0:03:17]} 21... Nh4 {[%clk
0:03:51.9]} 22. Qb5 {[%clk 0:03:02.9]} 22... Nxg2 {[%clk 0:03:45.3]} 23. Qxd7+
{[%clk 0:02:56]} 23... Kxd7 {[%clk 0:03:44.1]} 24. Red1 {[%clk 0:02:43.4]} 24...
Nxe3+ {[%clk 0:03:41.8]} 25. fxe3 {[%clk 0:02:42.2]} 25... Rxc2 {[%clk
0:03:40.7]} 26. Kg1 {[%clk 0:02:30.4]} 26... Rhh2 {[%clk 0:03:34.5]} 27. Rac1
{[%clk 0:02:24.9]} 27... Rxb2 {[%clk 0:03:33.2]} 28. Nb5 {[%clk 0:02:23.8]}
28... Rxb5 {[%clk 0:03:31.2]} 29. Kxh2 {[%clk 0:02:22.8]} 29... Rb2+ {[%clk
0:03:29.6]} 30. Kg3 {[%clk 0:02:17.4]} 30... Rxa2 {[%clk 0:03:28.7]} 31. Kg4
{[%clk 0:02:13.5]} 31... Ra4+ {[%clk 0:03:24.2]} 32. Kf5 {[%clk 0:02:10.6]}
32... g4 {[%clk 0:03:22.9]} 33. e4 {[%clk 0:02:07]} 33... g3 {[%clk 0:03:20.7]}
34. Rg1 {[%clk 0:02:03.1]} 34... Ra3 {[%clk 0:03:18.1]} 35. Rg2 {[%clk
0:02:00.2]} 35... Re3 {[%clk 0:03:13.4]} 36. Rcg1 {[%clk 0:01:56.2]} 36... Bh4
{[%clk 0:03:12.9]} 37. Rb1 {[%clk 0:01:43.1]} 37... b6 {[%clk 0:03:08.2]} 38.
Rh1 {[%clk 0:01:35]} 38... Rf3+ {[%clk 0:03:05.6]} 39. Kg6 {[%clk 0:01:23.8]}
39... Rf4 {[%clk 0:03:04]} 40. Re2 {[%clk 0:01:15.4]} 40... Rf2 {[%clk
0:02:57.8]} 41. Rxf2 {[%clk 0:01:09.4]} 41... gxf2 {[%clk 0:02:56.5]} 42. Rf1
{[%clk 0:01:08.2]} 42... Bg3 {[%clk 0:02:54.8]} 43. Kh5 {[%clk 0:01:07.1]} 43...
c6 {[%clk 0:02:52.5]} 44. dxc6+ {[%clk 0:01:05.1]} 44... Kxc6 {[%clk 0:02:51.4]}
45. Kg4 {[%clk 0:01:04.1]} 45... Bf4 {[%clk 0:02:50.7]} 46. Rxf2 {[%clk
0:01:02.1]} 46... d5 {[%clk 0:02:48.8]} 47. exd5+ {[%clk 0:00:59]} 47... Kxd5
{[%clk 0:02:48]} 48. Kf3 {[%clk 0:00:50.2]} 48... b5 {[%clk 0:02:46.8]} 49. Ke2
{[%clk 0:00:45.2]} 49... Kc4 {[%clk 0:02:45.9]} 50. Kd1 {[%clk 0:00:42.5]} 50...
b4 {[%clk 0:02:45.4]} 51. Kc2 {[%clk 0:00:39.9]} 51... Be3 {[%clk 0:02:40.9]}
52. Re2 {[%clk 0:00:37.3]} 52... Bd4 {[%clk 0:02:40.1]} 53. Re4 {[%clk
0:00:34.5]} 53... b3+ {[%clk 0:02:38.8]} 54. Kb1 {[%clk 0:00:33.6]} 54... Kd3
{[%clk 0:02:37.2]} 55. Re1 {[%clk 0:00:31.5]} 55... e4 {[%clk 0:02:36]} 56. Rd1+
{[%clk 0:00:29.6]} 56... Kc3 {[%clk 0:02:34.9]} 57. Rc1+ {[%clk 0:00:27.2]}
57... Kd2 {[%clk 0:02:32.3]} 58. Rh1 {[%clk 0:00:26]} 58... e3 {[%clk
0:02:30.6]} 59. Rd1+ {[%clk 0:00:16.8]} 59... Kc3 {[%clk 0:02:26.5]} 60. Rc1+
{[%clk 0:00:15.6]} 60... Kd3 {[%clk 0:02:25.7]} 61. Rd1+ {[%clk 0:00:15]} 61...
Ke4 {[%clk 0:02:25]} 62. Re1 {[%clk 0:00:13]} 62... b2 {[%clk 0:02:22.9]} 63.
Re2 {[%clk 0:00:11.4]} 63... Kf3 {[%clk 0:02:22]} 64. Re1 {[%clk 0:00:09.7]}
64... Kf2 {[%clk 0:02:21]} 65. Rh1 {[%clk 0:00:07.9]} 65... e2 {[%clk 0:02:20]}
66. Rh2+ {[%clk 0:00:06.7]} 66... Ke1 {[%clk 0:02:18.9]} 67. Rh1+ {[%clk
0:00:05.8]} 67... Kd2 {[%clk 0:02:17.2]} 68. Rh2 {[%clk 0:00:05.2]} 68... Kd1
{[%clk 0:02:14.9]} 69. Rh1+ {[%clk 0:00:04.5]} 69... e1=Q {[%clk 0:02:13.3]} 70.
Rxe1+ {[%clk 0:00:03.6]} 70... Kxe1 {[%clk 0:02:12.4]} 71. Kc2 {[%clk
0:00:02.7]} 71... Ke2 {[%clk 0:02:11.4]} 72. Kb1 {[%clk 0:00:02]} 72... Kd2
{[%clk 0:02:10.5]} 73. Ka2 {[%clk 0:00:01]} 73... Kc1 {[%clk 0:02:09.4]} 0-1